Workbook

Sheet Home
C16: ='Mug Discount Calc'!F31 -> Bottom Line Change: | D16: =LandfillDiversion!K26 -> -486.35 | F16: ='Mug Discount Calc'!F31 -> Bottom Line Change: | G16: ='Mug Discount Calc'!F32 -> -14.48
C18: =LandfillDiversion!I25 -> New Profits After Cup Costs: | D18: =New_Profits_After_Cup_Costs -> $40,331.75 | F18: ='Mug Discount Calc'!H24 -> New Profit After Mug Discount: | G18: ='Mug Discount Calc'!I24 -> 40803.62

Sheet Compostable Cup
U3: Static
U5: ="Data is "&U3 -> Data is Static | V5: Static
Q6: =LandfillDiversion!J25 -> $40,331.75 | V6: Dynamic
Q7: =LandfillDiversion!K26 -> -486.35
A46: Team members - Alyssa Aquino, Dakota Koenig, Kate Olson, Cristian Puente-Ortiz, Nick Schmidt

Sheet Mug Discount
J4: Static | L4: Static | M4: Dynamic
J6: ="Data is "&J4 -> Data is Static
B23: ='Mug Discount Calc'!C19 -> New Customer Demand Median: | C23: ='Mug Discount Calc'!C20 -> 13481.45 | D23: ='Mug Discount Calc'!E25 -> New Annual Revenue: | E23: ='Mug Discount Calc'!E26 -> $43,410.27 | G23: New Annual Costs: | H23: =DOLLAR('Mug Discount Calc'!E24+2000,2) -> $2,606.65
C24: ='Mug Discount Calc'!C21 -> +1,758.45
B25: Percent Customer Increase: | C25: ='Mug Discount Calc'!B20 -> 0.15 | D25: =IF('Mug Discount Calc'!D32>0,"Revenue Gained:","Revenue Lost") -> Revenue Gained: | E25: =IF('Mug Discount Calc'!D32>0,"+","-")&DOLLAR('Mug Discount Calc'!D32) -> +$2,006.02 | G25: ='Mug Discount Calc'!E31 -> Cost Increases: | H25: =DOLLAR('Mug Discount Calc'!E32,2) -> $2,020.50

Sheet ECO Comparison
Y3: Static | Z3: Dynamic

Sheet 2016 Data

Sheet Descriptive Model
A1: Date (Year) | B1: 2016
E3: Number of Cups | G3: Cost
B4: 1 | E4: 11723 | G4: =0.05*E4 -> 586.15
A5: Item | B5: Sum of Sales Price | C5: Sum of Qty
A6: Hot drink | B6: 39311.75 | C6: 11723 | E6: Revenue | G6: Profit After Cup Costs
E7: =GETPIVOTDATA("[Measures].[Sum of Transaction Revenue]",'Mug Discount Calc'!$L$17) -> 41404.25 | G7: =E7-G4 -> 40818.1
A10: December 2018 Team members - Alyssa Aquino, Dakota Koenig, Kate Olson, Cristian Puente-Ortiz, Nick Schmidt

Sheet LandfillDiversion
A1: Compostable Cup Data
C2: Marketing Impact on Consumers | H2: 2016 Demand | I2: =_2016_Demand -> 11723 | M2: 11
C3: Probability | D3: % customer increase | H3: 2016 pounds discarded | I3: =(11*I2)/453.592 -> 284.2929329 | L3: Advertising Cost: | M3: 2000 | N3: =L3&TEXT(M3,"$#,#") -> Advertising Cost: $2,000
B4: 0 | C4: 0.25 | D4: 0.1 | F4: Consumer Increase | G4: =IF($D$10=0,0.15,VLOOKUP(RAND(),B4:D7,3,TRUE)) -> 0.15 | H4: New Demand | I4: =(1+G4)*I2 -> 13481.45 | L4: Cost per New Cup: | M4: =M2/100 -> 0.11 | N4: =L4&TEXT(M4,"$0.00") -> Cost per New Cup: $0.11 | P4: 0.05 | X4: 0
B5: =B4+C4 -> 0.25 | C5: 0.4 | D5: 0.15 | F5: Success Rate | G5: =IF($D$10=0,0.03,RANDBETWEEN(3,10)/100) -> 0.03 | H5: =IF(Skew>1,"New Customer Demand Median:","New Customer Demand Average:") -> New Customer Demand Median: | I5: =IF(Skew>1,MEDIAN(Q15:Q1014),AVERAGE(Q15:Q1014)) -> 13481.45 | L5: Sales Price: | M5: =M6/100 -> 3.25 | N5: =L5&TEXT(M5,"$#,#.00") -> Sales Price: $3.25 | X5: =X4+0.01 -> 0.01
B6: =B5+C5 -> 0.65 | C6: 0.25 | D6: 0.2 | F6: Dispose of Cup Properly | G6: =IF(D10=0,404,_xlfn.BINOM.INV(New_Customer_Demand_Central_Tendency,G5,RAND())) -> 404 | I6: Revenue | J6: =M5*I4 -> 43814.7125 | M6: 325 | X6: =X5+0.01 -> 0.02
B7: 0.9 | C7: 0.1 | D7: 0.3 | F7: Lanfill Data | I7: Cost | J7: =M3+(M4*I4) -> 3482.9595 | X7: 0.03
B8: 1 | F8: Avg. Weight (g) of Coffee Cup | G8: 11 | H8: ="Percent Customer Increase:" -> Percent Customer Increase: | I8: =(I5-I2)/I2 -> 0.15 | M8: 2000 | X8: 0.04
F9: Diverted from Landfill (lbs) | G9: =(Avg._Weight__g__of_Coffee_Cup*G6)/453.592 -> 9.797350923 | I9: =IF((I5-I2)>0,"+"&TEXT(ROUND((I5-I2),2),"#,#.00"),IF((I5-I2)<0,"-"&TEXT(ROUND((I5-I2),2),"#,#.00"),I5-I2)) -> +1,758.45 | X9: 0.05
D10: =IF('Compostable Cup'!U3="Static",0,1) -> 0 | F10: ="- "&TEXT(ROUND(G10,0),"#,#")&" Ping-Pong Balls" -> - 1,646 Ping-Pong Balls | G10: =G9/0.00595248 -> 1645.927567 | H10: How Many Cups are discarded improperly: | I10: =(1-G5)*New_Customer_Demand_Central_Tendency -> 13077.0065
F11: ="- "&TEXT(ROUND(G11,0),"#,#")&" iPhone 8 Devices" -> - 30 iPhone 8 Devices | G11: =G9/0.32625 -> 30.0301944 | H11: Weight in Landfill | I11: =(I10*Avg._Weight__g__of_Coffee_Cup)/453.592 -> 317.1287666
F12: ="- "&TEXT(ROUND(G12,0),"#,#")&" U.S. Quarters (That's Equal to "&TEXT(ROUND(G12,1)*0.25,"$0.00")&")" -> - 784 U.S. Quarters (That's Equal to $195.95) | G12: =G9/0.01250021 -> 783.7749064 | I12: =ROUND(I11,2)&" pounds are still discarded in landfills." -> 317.13 pounds are still discarded in landfills.
E13: MAX Revenue: | I13: MAX COST: | K13: Skew | L13: =SKEW(Q15:Q1014) -> 1.001502881 | Q13: New Demand | S13: MAX: | X13: =X9+0.01 -> 0.06
D14: =J6 -> 43814.7125 | E14: ="Highest Revenue Simulated: "&DOLLAR(MAX(D15:D1014),2) -> Highest Revenue Simulated: $43,814.71 | H14: =J7 -> 3482.9595 | I14: ="Highest Cost Simulated: "&DOLLAR(MAX(H15:H1014),2) -> Highest Cost Simulated: $3,482.96 | N14: Profit (Rev-Cost) | O14: ="Highest Profit Simulated: "&DOLLAR(MAX(M15:M1014),2) -> Highest Profit Simulated: $999.00 | Q14: =I4 -> 13481.45 | S14: ="Highest Demand Simulated: "&TEXT(MAX(Q15:Q1014),"#,#.00") -> Highest Demand Simulated: 13,481.45 | X14: =X13+0.01 -> 0.07
C15: 1 | D15: 43814.7125 | E15: ="Median Revenue Simulated: "&DOLLAR(MEDIAN(D15:D1014),2) -> Median Revenue Simulated: $43,814.71 | G15: 1 | H15: 3482.9595 | I15: ="Median Cost Simulated: "&DOLLAR(MEDIAN(H15:H1014),2) -> Median Cost Simulated: $3,482.96 | J15: =AVERAGE($D$15:$D$1014)-AVERAGE($H$15:$H$1014) -> 40331.753 | K15: New Profit | N15: =D14-H14 -> 40331.753 | O15: ="Median Profit Simulated: "&DOLLAR(MEDIAN(M15:M1014),2) -> Median Profit Simulated: $500.00 | P15: 1 | Q15: 13481.45 | S15: ="Median Demand Simulated: "&TEXT(MEDIAN(Q15:Q1014),"#,##.00") -> Median Demand Simulated: 13,481.45 | X15: 0.08
C16: 2 | D16: 43814.7125 | E16: ="Average Revenue Simulated: "&DOLLAR(AVERAGE(D15:D1014),2) -> Average Revenue Simulated: $43,814.71 | G16: 2 | H16: 3482.9595 | I16: ="Average Cost Simulated: "&DOLLAR(AVERAGE(H15:H1014),2) -> Average Cost Simulated: $3,482.96 | J16: ='Descriptive Model'!G7 -> 40818.1 | K16: Original Profit | M16: 1 | N16: 40331.753 | O16: ="Average Profit Simulated: "&DOLLAR(AVERAGE(M15:M1014),2) -> Average Profit Simulated: $500.00 | P16: 2 | Q16: 13481.45 | S16: ="Average Demand Simulated: "&TEXT(AVERAGE(Q15:Q1014),"#,###.00") -> Average Demand Simulated: 13,481.45 | X16: 0.09
C17: 3 | D17: 43814.7125 | E17: ="Lowest Revenue Simulated: "&DOLLAR(MIN(D15:D1014),2) -> Lowest Revenue Simulated: $43,814.71 | G17: 3 | H17: 3482.9595 | I17: ="Lowest Cost Simulated: "&DOLLAR(MIN(H15:H1014),2) -> Lowest Cost Simulated: $3,482.96 | J17: =J15-J16 -> -486.347 | K17: Gains | M17: 2 | N17: 40331.753 | O17: ="Lowest Profit Simulated: "&DOLLAR(MIN(M15:M1014),2) -> Lowest Profit Simulated: $1.00 | P17: 3 | Q17: 13481.45 | S17: ="Lowest Demand Simulated: "&TEXT(MIN(Q15:Q1014),"#,#.00") -> Lowest Demand Simulated: 13,481.45 | X17: 0.1
C18: 4 | D18: 43814.7125 | G18: 4 | H18: 3482.9595 | M18: 3 | N18: 40331.753 | P18: 4 | Q18: 13481.45 | X18: 0.11
C19: 5 | D19: 43814.7125 | E19: =SKEW(D15:D1014) -> 1.001502881 | F19: =E20&" Revenue" -> Median Revenue | G19: 5 | H19: 3482.9595 | I19: =SKEW(H15:H1014) -> 1.001502881 | J19: =I20&" Cost" -> Median Cost | M19: 4 | N19: 40331.753 | P19: 5 | Q19: 13481.45 | X19: 0.12
C20: 6 | D20: 43814.7125 | E20: =IF(E19>1,"Median","Average") -> Median | F20: =IF(E19>1,DOLLAR(MEDIAN(D15:D1014)),DOLLAR(AVERAGE(D15:D1014))) -> $43,814.71 | G20: 6 | H20: 3482.9595 | I20: =IF(I19>1,"Median","Average") -> Median | J20: =DOLLAR(IF(I19>1,MEDIAN(H15:H1014),AVERAGE(H15:H1014))) -> $3,482.96 | M20: 5 | N20: 40331.753 | P20: 6 | Q20: 13481.45 | X20: 0.13
C21: 7 | D21: 43814.7125 | G21: 7 | H21: 3482.9595 | M21: 6 | N21: 40331.753 | P21: 7 | Q21: 13481.45 | X21: 0.14
C22: 8 | D22: 43814.7125 | E22: Old Revenue | F22: 41404.25 | G22: 8 | H22: 3482.9595 | I22: Old Costs | J22: 586.15 | M22: 7 | N22: 40331.753 | P22: 8 | Q22: 13481.45 | X22: 0.15
C23: 9 | D23: 43814.7125 | E23: Increase in Rev: | F23: =DOLLAR(VALUE(F20)-Old_Revenue,2) -> $2,410.46 | G23: 9 | H23: 3482.9595 | I23: Increase in Costs: | J23: =DOLLAR(MAX(VALUE(J20),J22)-MIN(VALUE(J20),J22),2) -> $2,896.81 | M23: 8 | N23: 40331.753 | P23: 9 | Q23: 13481.45 | X23: 0.16
C24: 10 | D24: 43814.7125 | G24: 10 | H24: 3482.9595 | K24: Old Profit | L24: 40818.1 | M24: 9 | N24: 40331.753 | P24: 10 | Q24: 13481.45 | X24: 0.17
C25: 11 | D25: 43814.7125 | G25: 11 | H25: 3482.9595 | I25: New Profits After Cup Costs: | J25: =DOLLAR(F20-J20,2) -> $40,331.75 | M25: 10 | N25: 40331.753 | P25: 11 | Q25: 13481.45 | X25: 0.18
C26: 12 | D26: 43814.7125 | G26: 12 | H26: 3482.9595 | I26: Compostable Cups Will Lead to a Profit | J26: =IF(K26>0,"Gain of:",IF(K26<0,"Loss of:",IF(K26=0,"the same as 2016"))) -> Loss of: | K26: =J25-L24 -> -486.35 | M26: 11 | N26: 40331.753 | P26: 12 | Q26: 13481.45 | X26: 0.19
C27: 13 | D27: 43814.7125 | G27: 13 | H27: 3482.9595 | I27: =I26&J26 -> Compostable Cups Will Lead to a Profit Loss of: | M27: 12 | N27: 40331.753 | P27: 13 | Q27: 13481.45 | X27: 0.2
C28: 14 | D28: 43814.7125 | G28: 14 | H28: 3482.9595 | M28: 13 | N28: 40331.753 | P28: 14 | Q28: 13481.45 | X28: 0.21
C29: 15 | D29: 43814.7125 | G29: 15 | H29: 3482.9595 | I29: Profit Standard Deviation: +/- | J29: =_xlfn.STDEV.S(N16:N1015) -> 7.352394307e-10 | M29: 14 | N29: 40331.753 | P29: 15 | Q29: 13481.45 | X29: 0.22
C30: 16 | D30: 43814.7125 | G30: 16 | H30: 3482.9595 | I30: =I29&DOLLAR(ROUND(J29,2)) -> Profit Standard Deviation: +/- $0.00 | M30: 15 | N30: 40331.753 | P30: 16 | Q30: 13481.45 | X30: 0.23
C31: 17 | D31: 43814.7125 | G31: 17 | H31: 3482.9595 | M31: 16 | N31: 40331.753 | P31: 17 | Q31: 13481.45 | X31: 0.24
C32: 18 | D32: 43814.7125 | G32: 18 | H32: 3482.9595 | M32: 17 | N32: 40331.753 | P32: 18 | Q32: 13481.45 | X32: 0.25
C33: 19 | D33: 43814.7125 | G33: 19 | H33: 3482.9595 | M33: 18 | N33: 40331.753 | P33: 19 | Q33: 13481.45 | X33: 0.26
C34: 20 | D34: 43814.7125 | G34: 20 | H34: 3482.9595 | M34: 19 | N34: 40331.753 | P34: 20 | Q34: 13481.45 | X34: 0.27
C35: 21 | D35: 43814.7125 | G35: 21 | H35: 3482.9595 | M35: 20 | N35: 40331.753 | P35: 21 | Q35: 13481.45 | X35: 0.28
C36: 22 | D36: 43814.7125 | G36: 22 | H36: 3482.9595 | M36: 21 | N36: 40331.753 | P36: 22 | Q36: 13481.45 | X36: 0.29
C37: 23 | D37: 43814.7125 | G37: 23 | H37: 3482.9595 | M37: 22 | N37: 40331.753 | P37: 23 | Q37: 13481.45 | X37: 0.3
C38: 24 | D38: 43814.7125 | G38: 24 | H38: 3482.9595 | M38: 23 | N38: 40331.753 | P38: 24 | Q38: 13481.45 | X38: 0.31
C39: 25 | D39: 43814.7125 | G39: 25 | H39: 3482.9595 | M39: 24 | N39: 40331.753 | P39: 25 | Q39: 13481.45 | X39: 0.32
C40: 26 | D40: 43814.7125 | G40: 26 | H40: 3482.9595 | M40: 25 | N40: 40331.753 | P40: 26 | Q40: 13481.45 | X40: 0.33
C41: 27 | D41: 43814.7125 | G41: 27 | H41: 3482.9595 | M41: 26 | N41: 40331.753 | P41: 27 | Q41: 13481.45 | X41: 0.34
C42: 28 | D42: 43814.7125 | G42: 28 | H42: 3482.9595 | M42: 27 | N42: 40331.753 | P42: 28 | Q42: 13481.45 | X42: 0.35
C43: 29 | D43: 43814.7125 | G43: 29 | H43: 3482.9595 | M43: 28 | N43: 40331.753 | P43: 29 | Q43: 13481.45 | X43: 0.36
C44: 30 | D44: 43814.7125 | G44: 30 | H44: 3482.9595 | M44: 29 | N44: 40331.753 | P44: 30 | Q44: 13481.45 | X44: 0.37
C45: 31 | D45: 43814.7125 | G45: 31 | H45: 3482.9595 | M45: 30 | N45: 40331.753 | P45: 31 | Q45: 13481.45 | X45: 0.38
C46: 32 | D46: 43814.7125 | G46: 32 | H46: 3482.9595 | M46: 31 | N46: 40331.753 | P46: 32 | Q46: 13481.45 | X46: 0.39
C47: 33 | D47: 43814.7125 | G47: 33 | H47: 3482.9595 | M47: 32 | N47: 40331.753 | P47: 33 | Q47: 13481.45 | X47: 0.4
C48: 34 | D48: 43814.7125 | G48: 34 | H48: 3482.9595 | M48: 33 | N48: 40331.753 | P48: 34 | Q48: 13481.45 | X48: 0.41
C49: 35 | D49: 43814.7125 | G49: 35 | H49: 3482.9595 | M49: 34 | N49: 40331.753 | P49: 35 | Q49: 13481.45 | X49: 0.42
C50: 36 | D50: 43814.7125 | G50: 36 | H50: 3482.9595 | M50: 35 | N50: 40331.753 | P50: 36 | Q50: 13481.45 | X50: 0.43
C51: 37 | D51: 43814.7125 | G51: 37 | H51: 3482.9595 | M51: 36 | N51: 40331.753 | P51: 37 | Q51: 13481.45 | X51: 0.44
C52: 38 | D52: 43814.7125 | G52: 38 | H52: 3482.9595 | M52: 37 | N52: 40331.753 | P52: 38 | Q52: 13481.45 | X52: 0.45
C53: 39 | D53: 43814.7125 | G53: 39 | H53: 3482.9595 | M53: 38 | N53: 40331.753 | P53: 39 | Q53: 13481.45 | X53: 0.46
C54: 40 | D54: 43814.7125 | G54: 40 | H54: 3482.9595 | M54: 39 | N54: 40331.753 | P54: 40 | Q54: 13481.45 | X54: 0.47
C55: 41 | D55: 43814.7125 | G55: 41 | H55: 3482.9595 | M55: 40 | N55: 40331.753 | P55: 41 | Q55: 13481.45 | X55: 0.48
C56: 42 | D56: 43814.7125 | G56: 42 | H56: 3482.9595 | M56: 41 | N56: 40331.753 | P56: 42 | Q56: 13481.45 | X56: 0.49
C57: 43 | D57: 43814.7125 | G57: 43 | H57: 3482.9595 | M57: 42 | N57: 40331.753 | P57: 43 | Q57: 13481.45 | X57: 0.5
C58: 44 | D58: 43814.7125 | G58: 44 | H58: 3482.9595 | M58: 43 | N58: 40331.753 | P58: 44 | Q58: 13481.45
C59: 45 | D59: 43814.7125 | G59: 45 | H59: 3482.9595 | M59: 44 | N59: 40331.753 | P59: 45 | Q59: 13481.45
C60: 46 | D60: 43814.7125 | G60: 46 | H60: 3482.9595 | M60: 45 | N60: 40331.753 | P60: 46 | Q60: 13481.45
C61: 47 | D61: 43814.7125 | G61: 47 | H61: 3482.9595 | M61: 46 | N61: 40331.753 | P61: 47 | Q61: 13481.45
C62: 48 | D62: 43814.7125 | G62: 48 | H62: 3482.9595 | M62: 47 | N62: 40331.753 | P62: 48 | Q62: 13481.45
C63: 49 | D63: 43814.7125 | G63: 49 | H63: 3482.9595 | M63: 48 | N63: 40331.753 | P63: 49 | Q63: 13481.45
C64: 50 | D64: 43814.7125 | G64: 50 | H64: 3482.9595 | M64: 49 | N64: 40331.753 | P64: 50 | Q64: 13481.45
C65: 51 | D65: 43814.7125 | G65: 51 | H65: 3482.9595 | M65: 50 | N65: 40331.753 | P65: 51 | Q65: 13481.45
C66: 52 | D66: 43814.7125 | G66: 52 | H66: 3482.9595 | M66: 51 | N66: 40331.753 | P66: 52 | Q66: 13481.45
C67: 53 | D67: 43814.7125 | G67: 53 | H67: 3482.9595 | M67: 52 | N67: 40331.753 | P67: 53 | Q67: 13481.45
C68: 54 | D68: 43814.7125 | G68: 54 | H68: 3482.9595 | M68: 53 | N68: 40331.753 | P68: 54 | Q68: 13481.45
C69: 55 | D69: 43814.7125 | G69: 55 | H69: 3482.9595 | M69: 54 | N69: 40331.753 | P69: 55 | Q69: 13481.45
C70: 56 | D70: 43814.7125 | G70: 56 | H70: 3482.9595 | M70: 55 | N70: 40331.753 | P70: 56 | Q70: 13481.45
C71: 57 | D71: 43814.7125 | G71: 57 | H71: 3482.9595 | M71: 56 | N71: 40331.753 | P71: 57 | Q71: 13481.45
C72: 58 | D72: 43814.7125 | G72: 58 | H72: 3482.9595 | M72: 57 | N72: 40331.753 | P72: 58 | Q72: 13481.45
C73: 59 | D73: 43814.7125 | G73: 59 | H73: 3482.9595 | M73: 58 | N73: 40331.753 | P73: 59 | Q73: 13481.45
C74: 60 | D74: 43814.7125 | G74: 60 | H74: 3482.9595 | M74: 59 | N74: 40331.753 | P74: 60 | Q74: 13481.45
C75: 61 | D75: 43814.7125 | G75: 61 | H75: 3482.9595 | M75: 60 | N75: 40331.753 | P75: 61 | Q75: 13481.45
C76: 62 | D76: 43814.7125 | G76: 62 | H76: 3482.9595 | M76: 61 | N76: 40331.753 | P76: 62 | Q76: 13481.45
C77: 63 | D77: 43814.7125 | G77: 63 | H77: 3482.9595 | M77: 62 | N77: 40331.753 | P77: 63 | Q77: 13481.45
C78: 64 | D78: 43814.7125 | G78: 64 | H78: 3482.9595 | M78: 63 | N78: 40331.753 | P78: 64 | Q78: 13481.45
C79: 65 | D79: 43814.7125 | G79: 65 | H79: 3482.9595 | M79: 64 | N79: 40331.753 | P79: 65 | Q79: 13481.45
C80: 66 | D80: 43814.7125 | G80: 66 | H80: 3482.9595 | M80: 65 | N80: 40331.753 | P80: 66 | Q80: 13481.45
C81: 67 | D81: 43814.7125 | G81: 67 | H81: 3482.9595 | M81: 66 | N81: 40331.753 | P81: 67 | Q81: 13481.45
C82: 68 | D82: 43814.7125 | G82: 68 | H82: 3482.9595 | M82: 67 | N82: 40331.753 | P82: 68 | Q82: 13481.45
C83: 69 | D83: 43814.7125 | G83: 69 | H83: 3482.9595 | M83: 68 | N83: 40331.753 | P83: 69 | Q83: 13481.45
C84: 70 | D84: 43814.7125 | G84: 70 | H84: 3482.9595 | M84: 69 | N84: 40331.753 | P84: 70 | Q84: 13481.45
C85: 71 | D85: 43814.7125 | G85: 71 | H85: 3482.9595 | M85: 70 | N85: 40331.753 | P85: 71 | Q85: 13481.45
C86: 72 | D86: 43814.7125 | G86: 72 | H86: 3482.9595 | M86: 71 | N86: 40331.753 | P86: 72 | Q86: 13481.45
C87: 73 | D87: 43814.7125 | G87: 73 | H87: 3482.9595 | M87: 72 | N87: 40331.753 | P87: 73 | Q87: 13481.45
C88: 74 | D88: 43814.7125 | G88: 74 | H88: 3482.9595 | M88: 73 | N88: 40331.753 | P88: 74 | Q88: 13481.45
C89: 75 | D89: 43814.7125 | G89: 75 | H89: 3482.9595 | M89: 74 | N89: 40331.753 | P89: 75 | Q89: 13481.45
C90: 76 | D90: 43814.7125 | G90: 76 | H90: 3482.9595 | M90: 75 | N90: 40331.753 | P90: 76 | Q90: 13481.45
C91: 77 | D91: 43814.7125 | G91: 77 | H91: 3482.9595 | M91: 76 | N91: 40331.753 | P91: 77 | Q91: 13481.45
C92: 78 | D92: 43814.7125 | G92: 78 | H92: 3482.9595 | M92: 77 | N92: 40331.753 | P92: 78 | Q92: 13481.45
C93: 79 | D93: 43814.7125 | G93: 79 | H93: 3482.9595 | M93: 78 | N93: 40331.753 | P93: 79 | Q93: 13481.45
C94: 80 | D94: 43814.7125 | G94: 80 | H94: 3482.9595 | M94: 79 | N94: 40331.753 | P94: 80 | Q94: 13481.45
C95: 81 | D95: 43814.7125 | G95: 81 | H95: 3482.9595 | M95: 80 | N95: 40331.753 | P95: 81 | Q95: 13481.45
C96: 82 | D96: 43814.7125 | G96: 82 | H96: 3482.9595 | M96: 81 | N96: 40331.753 | P96: 82 | Q96: 13481.45
C97: 83 | D97: 43814.7125 | G97: 83 | H97: 3482.9595 | M97: 82 | N97: 40331.753 | P97: 83 | Q97: 13481.45
C98: 84 | D98: 43814.7125 | G98: 84 | H98: 3482.9595 | M98: 83 | N98: 40331.753 | P98: 84 | Q98: 13481.45
C99: 85 | D99: 43814.7125 | G99: 85 | H99: 3482.9595 | M99: 84 | N99: 40331.753 | P99: 85 | Q99: 13481.45
C100: 86 | D100: 43814.7125 | G100: 86 | H100: 3482.9595 | M100: 85 | N100: 40331.753 | P100: 86 | Q100: 13481.45
C101: 87 | D101: 43814.7125 | G101: 87 | H101: 3482.9595 | M101: 86 | N101: 40331.753 | P101: 87 | Q101: 13481.45
C102: 88 | D102: 43814.7125 | G102: 88 | H102: 3482.9595 | M102: 87 | N102: 40331.753 | P102: 88 | Q102: 13481.45
C103: 89 | D103: 43814.7125 | G103: 89 | H103: 3482.9595 | M103: 88 | N103: 40331.753 | P103: 89 | Q103: 13481.45
C104: 90 | D104: 43814.7125 | G104: 90 | H104: 3482.9595 | M104: 89 | N104: 40331.753 | P104: 90 | Q104: 13481.45
C105: 91 | D105: 43814.7125 | G105: 91 | H105: 3482.9595 | M105: 90 | N105: 40331.753 | P105: 91 | Q105: 13481.45
C106: 92 | D106: 43814.7125 | G106: 92 | H106: 3482.9595 | M106: 91 | N106: 40331.753 | P106: 92 | Q106: 13481.45
C107: 93 | D107: 43814.7125 | G107: 93 | H107: 3482.9595 | M107: 92 | N107: 40331.753 | P107: 93 | Q107: 13481.45
C108: 94 | D108: 43814.7125 | G108: 94 | H108: 3482.9595 | M108: 93 | N108: 40331.753 | P108: 94 | Q108: 13481.45
C109: 95 | D109: 43814.7125 | G109: 95 | H109: 3482.9595 | M109: 94 | N109: 40331.753 | P109: 95 | Q109: 13481.45
C110: 96 | D110: 43814.7125 | G110: 96 | H110: 3482.9595 | M110: 95 | N110: 40331.753 | P110: 96 | Q110: 13481.45
C111: 97 | D111: 43814.7125 | G111: 97 | H111: 3482.9595 | M111: 96 | N111: 40331.753 | P111: 97 | Q111: 13481.45
C112: 98 | D112: 43814.7125 | G112: 98 | H112: 3482.9595 | M112: 97 | N112: 40331.753 | P112: 98 | Q112: 13481.45
C113: 99 | D113: 43814.7125 | G113: 99 | H113: 3482.9595 | M113: 98 | N113: 40331.753 | P113: 99 | Q113: 13481.45
C114: 100 | D114: 43814.7125 | G114: 100 | H114: 3482.9595 | M114: 99 | N114: 40331.753 | P114: 100 | Q114: 13481.45
C115: 101 | D115: 43814.7125 | G115: 101 | H115: 3482.9595 | M115: 100 | N115: 40331.753 | P115: 101 | Q115: 13481.45
C116: 102 | D116: 43814.7125 | G116: 102 | H116: 3482.9595 | M116: 101 | N116: 40331.753 | P116: 102 | Q116: 13481.45
C117: 103 | D117: 43814.7125 | G117: 103 | H117: 3482.9595 | M117: 102 | N117: 40331.753 | P117: 103 | Q117: 13481.45
C118: 104 | D118: 43814.7125 | G118: 104 | H118: 3482.9595 | M118: 103 | N118: 40331.753 | P118: 104 | Q118: 13481.45
C119: 105 | D119: 43814.7125 | G119: 105 | H119: 3482.9595 | M119: 104 | N119: 40331.753 | P119: 105 | Q119: 13481.45
C120: 106 | D120: 43814.7125 | G120: 106 | H120: 3482.9595 | M120: 105 | N120: 40331.753 | P120: 106 | Q120: 13481.45
C121: 107 | D121: 43814.7125 | G121: 107 | H121: 3482.9595 | M121: 106 | N121: 40331.753 | P121: 107 | Q121: 13481.45
C122: 108 | D122: 43814.7125 | G122: 108 | H122: 3482.9595 | M122: 107 | N122: 40331.753 | P122: 108 | Q122: 13481.45
C123: 109 | D123: 43814.7125 | G123: 109 | H123: 3482.9595 | M123: 108 | N123: 40331.753 | P123: 109 | Q123: 13481.45
C124: 110 | D124: 43814.7125 | G124: 110 | H124: 3482.9595 | M124: 109 | N124: 40331.753 | P124: 110 | Q124: 13481.45
C125: 111 | D125: 43814.7125 | G125: 111 | H125: 3482.9595 | M125: 110 | N125: 40331.753 | P125: 111 | Q125: 13481.45
C126: 112 | D126: 43814.7125 | G126: 112 | H126: 3482.9595 | M126: 111 | N126: 40331.753 | P126: 112 | Q126: 13481.45
C127: 113 | D127: 43814.7125 | G127: 113 | H127: 3482.9595 | M127: 112 | N127: 40331.753 | P127: 113 | Q127: 13481.45
C128: 114 | D128: 43814.7125 | G128: 114 | H128: 3482.9595 | M128: 113 | N128: 40331.753 | P128: 114 | Q128: 13481.45
C129: 115 | D129: 43814.7125 | G129: 115 | H129: 3482.9595 | M129: 114 | N129: 40331.753 | P129: 115 | Q129: 13481.45
C130: 116 | D130: 43814.7125 | G130: 116 | H130: 3482.9595 | M130: 115 | N130: 40331.753 | P130: 116 | Q130: 13481.45
C131: 117 | D131: 43814.7125 | G131: 117 | H131: 3482.9595 | M131: 116 | N131: 40331.753 | P131: 117 | Q131: 13481.45
C132: 118 | D132: 43814.7125 | G132: 118 | H132: 3482.9595 | M132: 117 | N132: 40331.753 | P132: 118 | Q132: 13481.45
C133: 119 | D133: 43814.7125 | G133: 119 | H133: 3482.9595 | M133: 118 | N133: 40331.753 | P133: 119 | Q133: 13481.45
C134: 120 | D134: 43814.7125 | G134: 120 | H134: 3482.9595 | M134: 119 | N134: 40331.753 | P134: 120 | Q134: 13481.45
C135: 121 | D135: 43814.7125 | G135: 121 | H135: 3482.9595 | M135: 120 | N135: 40331.753 | P135: 121 | Q135: 13481.45
C136: 122 | D136: 43814.7125 | G136: 122 | H136: 3482.9595 | M136: 121 | N136: 40331.753 | P136: 122 | Q136: 13481.45
C137: 123 | D137: 43814.7125 | G137: 123 | H137: 3482.9595 | M137: 122 | N137: 40331.753 | P137: 123 | Q137: 13481.45
C138: 124 | D138: 43814.7125 | G138: 124 | H138: 3482.9595 | M138: 123 | N138: 40331.753 | P138: 124 | Q138: 13481.45
C139: 125 | D139: 43814.7125 | G139: 125 | H139: 3482.9595 | M139: 124 | N139: 40331.753 | P139: 125 | Q139: 13481.45
C140: 126 | D140: 43814.7125 | G140: 126 | H140: 3482.9595 | M140: 125 | N140: 40331.753 | P140: 126 | Q140: 13481.45
C141: 127 | D141: 43814.7125 | G141: 127 | H141: 3482.9595 | M141: 126 | N141: 40331.753 | P141: 127 | Q141: 13481.45
C142: 128 | D142: 43814.7125 | G142: 128 | H142: 3482.9595 | M142: 127 | N142: 40331.753 | P142: 128 | Q142: 13481.45
C143: 129 | D143: 43814.7125 | G143: 129 | H143: 3482.9595 | M143: 128 | N143: 40331.753 | P143: 129 | Q143: 13481.45
C144: 130 | D144: 43814.7125 | G144: 130 | H144: 3482.9595 | M144: 129 | N144: 40331.753 | P144: 130 | Q144: 13481.45
C145: 131 | D145: 43814.7125 | G145: 131 | H145: 3482.9595 | M145: 130 | N145: 40331.753 | P145: 131 | Q145: 13481.45
C146: 132 | D146: 43814.7125 | G146: 132 | H146: 3482.9595 | M146: 131 | N146: 40331.753 | P146: 132 | Q146: 13481.45
C147: 133 | D147: 43814.7125 | G147: 133 | H147: 3482.9595 | M147: 132 | N147: 40331.753 | P147: 133 | Q147: 13481.45
C148: 134 | D148: 43814.7125 | G148: 134 | H148: 3482.9595 | M148: 133 | N148: 40331.753 | P148: 134 | Q148: 13481.45
C149: 135 | D149: 43814.7125 | G149: 135 | H149: 3482.9595 | M149: 134 | N149: 40331.753 | P149: 135 | Q149: 13481.45
C150: 136 | D150: 43814.7125 | G150: 136 | H150: 3482.9595 | M150: 135 | N150: 40331.753 | P150: 136 | Q150: 13481.45
C151: 137 | D151: 43814.7125 | G151: 137 | H151: 3482.9595 | M151: 136 | N151: 40331.753 | P151: 137 | Q151: 13481.45
C152: 138 | D152: 43814.7125 | G152: 138 | H152: 3482.9595 | M152: 137 | N152: 40331.753 | P152: 138 | Q152: 13481.45
C153: 139 | D153: 43814.7125 | G153: 139 | H153: 3482.9595 | M153: 138 | N153: 40331.753 | P153: 139 | Q153: 13481.45
C154: 140 | D154: 43814.7125 | G154: 140 | H154: 3482.9595 | M154: 139 | N154: 40331.753 | P154: 140 | Q154: 13481.45
C155: 141 | D155: 43814.7125 | G155: 141 | H155: 3482.9595 | M155: 140 | N155: 40331.753 | P155: 141 | Q155: 13481.45
C156: 142 | D156: 43814.7125 | G156: 142 | H156: 3482.9595 | M156: 141 | N156: 40331.753 | P156: 142 | Q156: 13481.45
C157: 143 | D157: 43814.7125 | G157: 143 | H157: 3482.9595 | M157: 142 | N157: 40331.753 | P157: 143 | Q157: 13481.45
C158: 144 | D158: 43814.7125 | G158: 144 | H158: 3482.9595 | M158: 143 | N158: 40331.753 | P158: 144 | Q158: 13481.45
C159: 145 | D159: 43814.7125 | G159: 145 | H159: 3482.9595 | M159: 144 | N159: 40331.753 | P159: 145 | Q159: 13481.45
C160: 146 | D160: 43814.7125 | G160: 146 | H160: 3482.9595 | M160: 145 | N160: 40331.753 | P160: 146 | Q160: 13481.45
C161: 147 | D161: 43814.7125 | G161: 147 | H161: 3482.9595 | M161: 146 | N161: 40331.753 | P161: 147 | Q161: 13481.45
C162: 148 | D162: 43814.7125 | G162: 148 | H162: 3482.9595 | M162: 147 | N162: 40331.753 | P162: 148 | Q162: 13481.45
C163: 149 | D163: 43814.7125 | G163: 149 | H163: 3482.9595 | M163: 148 | N163: 40331.753 | P163: 149 | Q163: 13481.45
C164: 150 | D164: 43814.7125 | G164: 150 | H164: 3482.9595 | M164: 149 | N164: 40331.753 | P164: 150 | Q164: 13481.45
C165: 151 | D165: 43814.7125 | G165: 151 | H165: 3482.9595 | M165: 150 | N165: 40331.753 | P165: 151 | Q165: 13481.45
C166: 152 | D166: 43814.7125 | G166: 152 | H166: 3482.9595 | M166: 151 | N166: 40331.753 | P166: 152 | Q166: 13481.45
C167: 153 | D167: 43814.7125 | G167: 153 | H167: 3482.9595 | M167: 152 | N167: 40331.753 | P167: 153 | Q167: 13481.45
C168: 154 | D168: 43814.7125 | G168: 154 | H168: 3482.9595 | M168: 153 | N168: 40331.753 | P168: 154 | Q168: 13481.45
C169: 155 | D169: 43814.7125 | G169: 155 | H169: 3482.9595 | M169: 154 | N169: 40331.753 | P169: 155 | Q169: 13481.45
C170: 156 | D170: 43814.7125 | G170: 156 | H170: 3482.9595 | M170: 155 | N170: 40331.753 | P170: 156 | Q170: 13481.45
C171: 157 | D171: 43814.7125 | G171: 157 | H171: 3482.9595 | M171: 156 | N171: 40331.753 | P171: 157 | Q171: 13481.45
C172: 158 | D172: 43814.7125 | G172: 158 | H172: 3482.9595 | M172: 157 | N172: 40331.753 | P172: 158 | Q172: 13481.45
C173: 159 | D173: 43814.7125 | G173: 159 | H173: 3482.9595 | M173: 158 | N173: 40331.753 | P173: 159 | Q173: 13481.45
C174: 160 | D174: 43814.7125 | G174: 160 | H174: 3482.9595 | M174: 159 | N174: 40331.753 | P174: 160 | Q174: 13481.45
C175: 161 | D175: 43814.7125 | G175: 161 | H175: 3482.9595 | M175: 160 | N175: 40331.753 | P175: 161 | Q175: 13481.45
C176: 162 | D176: 43814.7125 | G176: 162 | H176: 3482.9595 | M176: 161 | N176: 40331.753 | P176: 162 | Q176: 13481.45
C177: 163 | D177: 43814.7125 | G177: 163 | H177: 3482.9595 | M177: 162 | N177: 40331.753 | P177: 163 | Q177: 13481.45
C178: 164 | D178: 43814.7125 | G178: 164 | H178: 3482.9595 | M178: 163 | N178: 40331.753 | P178: 164 | Q178: 13481.45
C179: 165 | D179: 43814.7125 | G179: 165 | H179: 3482.9595 | M179: 164 | N179: 40331.753 | P179: 165 | Q179: 13481.45
C180: 166 | D180: 43814.7125 | G180: 166 | H180: 3482.9595 | M180: 165 | N180: 40331.753 | P180: 166 | Q180: 13481.45
C181: 167 | D181: 43814.7125 | G181: 167 | H181: 3482.9595 | M181: 166 | N181: 40331.753 | P181: 167 | Q181: 13481.45
C182: 168 | D182: 43814.7125 | G182: 168 | H182: 3482.9595 | M182: 167 | N182: 40331.753 | P182: 168 | Q182: 13481.45
C183: 169 | D183: 43814.7125 | G183: 169 | H183: 3482.9595 | M183: 168 | N183: 40331.753 | P183: 169 | Q183: 13481.45
C184: 170 | D184: 43814.7125 | G184: 170 | H184: 3482.9595 | M184: 169 | N184: 40331.753 | P184: 170 | Q184: 13481.45
C185: 171 | D185: 43814.7125 | G185: 171 | H185: 3482.9595 | M185: 170 | N185: 40331.753 | P185: 171 | Q185: 13481.45
C186: 172 | D186: 43814.7125 | G186: 172 | H186: 3482.9595 | M186: 171 | N186: 40331.753 | P186: 172 | Q186: 13481.45
C187: 173 | D187: 43814.7125 | G187: 173 | H187: 3482.9595 | M187: 172 | N187: 40331.753 | P187: 173 | Q187: 13481.45
C188: 174 | D188: 43814.7125 | G188: 174 | H188: 3482.9595 | M188: 173 | N188: 40331.753 | P188: 174 | Q188: 13481.45
C189: 175 | D189: 43814.7125 | G189: 175 | H189: 3482.9595 | M189: 174 | N189: 40331.753 | P189: 175 | Q189: 13481.45
C190: 176 | D190: 43814.7125 | G190: 176 | H190: 3482.9595 | M190: 175 | N190: 40331.753 | P190: 176 | Q190: 13481.45
C191: 177 | D191: 43814.7125 | G191: 177 | H191: 3482.9595 | M191: 176 | N191: 40331.753 | P191: 177 | Q191: 13481.45
C192: 178 | D192: 43814.7125 | G192: 178 | H192: 3482.9595 | M192: 177 | N192: 40331.753 | P192: 178 | Q192: 13481.45
C193: 179 | D193: 43814.7125 | G193: 179 | H193: 3482.9595 | M193: 178 | N193: 40331.753 | P193: 179 | Q193: 13481.45
C194: 180 | D194: 43814.7125 | G194: 180 | H194: 3482.9595 | M194: 179 | N194: 40331.753 | P194: 180 | Q194: 13481.45
C195: 181 | D195: 43814.7125 | G195: 181 | H195: 3482.9595 | M195: 180 | N195: 40331.753 | P195: 181 | Q195: 13481.45
C196: 182 | D196: 43814.7125 | G196: 182 | H196: 3482.9595 | M196: 181 | N196: 40331.753 | P196: 182 | Q196: 13481.45
C197: 183 | D197: 43814.7125 | G197: 183 | H197: 3482.9595 | M197: 182 | N197: 40331.753 | P197: 183 | Q197: 13481.45
C198: 184 | D198: 43814.7125 | G198: 184 | H198: 3482.9595 | M198: 183 | N198: 40331.753 | P198: 184 | Q198: 13481.45
C199: 185 | D199: 43814.7125 | G199: 185 | H199: 3482.9595 | M199: 184 | N199: 40331.753 | P199: 185 | Q199: 13481.45
C200: 186 | D200: 43814.7125 | G200: 186 | H200: 3482.9595 | M200: 185 | N200: 40331.753 | P200: 186 | Q200: 13481.45
... 815 more rows

Sheet Mug Discount Calc
A1: Mug Discount Data
L2: Type | M2: Hot drink
B3: Percent of Customers That Bring Mugs | L3: To Go? | M3: 1
B4: =IF(C6=0,0.1,RANDBETWEEN(10,15)/100) -> 0.1
E5: Discount | F5: =(I9-I11)/I9 -> 0.09230769231 | H5: Cost Per Cup: | I5: 0.05 | L5: Row Labels | M5: Sum of Qty
C6: =IF('Mug Discount'!J4="Static",0,1) -> 0 | L6: 2013 | M6: 2176
H7: Investment in Advertising: | I7: =LandfillDiversion!M3 -> 2000 | L7: 2014 | M7: 5200
L8: 2015 | M8: 7971
C9: Probability | D9: % customer increase | H9: Regular Sales Price: | I9: =LandfillDiversion!M5 -> 3.25 | L9: 2016 | M9: 11723
B10: 0 | C10: 0.25 | D10: 0.1 | F10: =H9&DOLLAR(I9) -> Regular Sales Price: $3.25 | L10: 2017 | M10: 10155
B11: =C10+B10 -> 0.25 | C11: 0.4 | D11: 0.15 | H11: Discounted Sales Price: | I11: =I12/100 -> 2.95 | L11: Grand Total | M11: 37225
B12: =C11+B11 -> 0.65 | C12: 0.25 | D12: 0.2 | F12: =H11&DOLLAR(I11) -> Discounted Sales Price: $2.95 | I12: 295
B13: 0.9 | C13: 0.1 | D13: 0.3 | L13: Type | M13: Hot drink
F14: Weight in Landfill | G14: =(E20*Avg._Weight__g__of_Coffee_Cup)/453.592 -> 294.235789 | I14: =DOLLAR(I7,0)&" of this cost comes from advertising expenses" -> $2,000 of this cost comes from advertising expenses | L14: To Go? | M14: 1
B15: 2016 Demand | G15: =ROUND(G14,2)&" pounds are still discarded in landfills." -> 294.24 pounds are still discarded in landfills. | L15: Date (Year) | M15: 2016
B16: 11723 | C16: =0.15*_2016_Demand -> 1758.45 | F16: ='Mug Discount Calc'!F31 -> Bottom Line Change: | H16: Landfill Data
B17: New Customer Base Multiplier | C17: New Customer Base | D17: Mugs Used as an Alternative | E17: Disposable Cups Used by Customer | H17: Avg. Weight (g) of Coffee Cup | I17: 11 | L17: Row Labels | M17: Sum of Transaction Revenue | N17: Sum of Qty
B18: =IF(C6=0,0.15,VLOOKUP(RAND(),B10:D13,3,TRUE)) -> 0.15 | C18: =GETPIVOTDATA("[Measures].[Sum of Qty]",$L$5,"[transdetails].[Date (Year)]","[transdetails].[Date (Year)].&[2016]")*(1+B18) -> 13481.45 | D18: =C18*B4 -> 1348.145 | E18: =C18-D18 -> 12133.305 | H18: Diverted from Landfill (lbs) | I18: =(Avg._Weight__g__of_Coffee_Cup*D20)/453.592 -> 32.6901709 | L18: Aeropress-8 oz | M18: 1280 | N18: 320
B19: ="Percent Customer Increase:" -> Percent Customer Increase: | C19: =IF(Skew_Customer>1,"New Customer Demand Median:", "New Customer Demand Average:") -> New Customer Demand Median: | D19: Mugs Used | E19: Disposable Cups Used | H19: ="- "&TEXT(ROUND(I19,0),"#,#")&" Ping-Pong Balls" -> - 5,492 Ping-Pong Balls | I19: =I18/0.00595248 -> 5491.857327 | L19: Americano-8 oz | M19: 270.75 | N19: 57
B20: =IF(C6=0,0.15,(C20-_2016_Demand)/_2016_Demand) -> 0.15 | C20: =IF(C6=0,(_2016_Demand+C16),IF(Skew_Customer>1,MEDIAN(F37:F1036),AVERAGE(F37:F1036))) -> 13481.45 | D20: =ROUND(B4*C20,0) -> 1348 | E20: =ROUND((1-B4)*C20,0) -> 12133 | H20: ="- "&TEXT(ROUND(I20,0),"#,#")&" iPhone 8 Devices" -> - 100 iPhone 8 Devices | I20: =I18/0.32625 -> 100.1997576 | L20: Café Cubano-2 oz | M20: 2156 | N20: 616
C21: ="+"&TEXT(C20-_2016_Demand,"#,#.00") -> +1,758.45 | D21: Costs if no one brought a mug | H21: ="- "&TEXT(ROUND(I21,0),"#,#")&" U.S. Quarters (That's Equal to "&TEXT(ROUND(I21,1)*0.25,"$0.00")&")" -> - 2,615 U.S. Quarters (That's Equal to $653.80) | I21: =I18/0.01250021 -> 2615.169737 | L21: Café latté-10 oz | M21: 6753.75 | N21: 1801
D22: =C20*I5 -> 674.0725 | L22: Café latté-12 oz | M22: 221 | N22: 52
C23: Revenue from Mug Customers | D23: Revenue from Regular Customers | E23: Cost of Disposible Cups | F23: Advertising Cost | H23: Old Profit | I23: 40818.1 | L23: Cappuccino-6 oz | M23: 4443.75 | N23: 1185
C24: =D18*I11 -> 3977.02775 | D24: =E18*I9 -> 39433.24125 | E24: =E20*I5 -> 606.65 | F24: =I7 -> 2000 | H24: New Profit After Mug Discount: | I24: =E26-(E24+F24) -> 40803.62 | L24: Chai-10 oz | M24: 1404 | N24: 351
C25: =IF(Skew_RevenueDis>1,"Total Revenue from Mug Customers Median:", "Total Revenue from Mug Customers Average:") -> Total Revenue from Mug Customers Median: | D25: =IF(Skew_RevenueReg>1,"Total Revenue from Regular Customers Median:", "Total Revenue from Regular Customers Average:") -> Total Revenue from Regular Customers Average: | E25: New Annual Revenue: | H25: Mug Discounts Will Lead to a | I25: =IF(I26>0,"Profit Gain of:","Profit Loss of:") -> Profit Loss of: | L25: Chai-12 oz | M25: 399 | N25: 84
C26: =DOLLAR(IF(Skew_RevenueDis>1,MEDIAN(B37:B1036),AVERAGE(B37:B1036))) -> $3,977.03 | D26: =DOLLAR(IF(Skew_RevenueReg>1,MEDIAN(D37:D1036),AVERAGE(D37:D1036))) -> $39,433.24 | E26: =DOLLAR(D26+C26) -> $43,410.27 | H26: =H25&I25 -> Mug Discounts Will Lead to a Profit Loss of: | I26: =I24-I23 -> -14.48 | L26: Cortado-4 oz | M26: 82.5 | N26: 22
C27: =IF(Skew_RevenueDis>1,"Median","Average") -> Median | D27: =IF(Skew_RevenueReg>1,"Median","Average") -> Average | E27: =SKEW(H37:H1036) -> -1.001502881 | F27: =MEDIAN(H37:H1036) -> 43410.269 | L27: Drip coffee-10 oz | M27: 1197 | N27: 684
C28: Where Revenue Comes From | D28: Revenue From Current Situation | E28: Cost From Current Situation | H28: Positive: | I28: =IF(I26>0,DOLLAR(I26,2),"") ->  | L28: Drip coffee-16 oz | M28: 445.5 | N28: 162 | Q28: Total revenue
B29: Total Revenue From Mug Customers | C29: =VALUE(C26) -> 3977.03 | D29: ='Descriptive Model'!E7 -> 41404.25 | E29: ='Descriptive Model'!G4 -> 586.15 | F29: =E24-E29 -> 20.5 | G29: =IF(F29>0," increase"," decrease") -> increase | H29: Negative: | I29: =IF(I26<0,DOLLAR(I26,2),"") -> ($14.48) | L29: Espresso-1 oz | M29: 497.5 | N29: 199 | P29: Total Revenue from Mug Customers Median:
B30: Total Revenue From Regular Customers | C30: =VALUE(D26) -> 39433.24 | F30: =IF(G29=" decrease",-F29,F29) -> 20.5 | G30: ="This is a "&DOLLAR(F30,2)&G29&" in total annual disposable cup costs, since "&DOLLAR(I7,0)&" comes from advertising costs" -> This is a $20.50 increase in total annual disposable cup costs, since $2,000 comes from advertising costs | L30: Hot chocolate-Kid's (8 oz) | M30: 113.75 | N30: 35 | P30: Total Revenue from Regular Customers Average: | Q30: $39,433.24
C31: Change In Cost Since Last Year | D31: Revenue Gains | E31: Cost Increases: | F31: Bottom Line Change: | G31: ="This is a "&DOLLAR(F30,2)&G29&" in costs associated with disposable cups" -> This is a $20.50 increase in costs associated with disposable cups | L31: Hot chocolate-Regular (12 oz) | M31: 935.75 | N31: 197 | Q31: $3,977.03
B32: 2016 Disposable Cup Costs | C32: =VALUE(E29) -> 586.15 | D32: =(C26+D26)-D29 -> 2006.02 | E32: =(E24+F24)-E29 -> 2020.5 | F32: =D32-E32 -> -14.48 | L32: Moroccan tea-10 oz | M32: 1155 | N32: 385
B33: 2017 Disposable Cup Costs | C33: =VALUE(E24) -> 606.65 | J33: =J34&DOLLAR(J35,2) -> Profit Standard Deviation: +/- $0.00 | L33: Pourover-10 oz | M33: 6333 | N33: 2111
A34: Skew RevenueDis | B34: =SKEW(B37:B1036) -> 1.001502881 | C34: Skew RevenueReg | D34: =SKEW(D37:D1036) -> -1.001502881 | E34: Skew Customer | F34: =SKEW(F37:F1036) -> 1.001502881 | H34: ="Revenue Standard Deviation is +/- "&DOLLAR(_xlfn.STDEV.S(H37:H1036),2) -> Revenue Standard Deviation is +/- $0.00 | J34: Profit Standard Deviation: +/- | L34: Pourover-12 oz | M34: 5071.5 | N34: 1449
B35: =C23 -> Revenue from Mug Customers | D35: =D23 -> Revenue from Regular Customers | F35: =C17 -> New Customer Base | H35: Total Revenue Monte Carlo | J35: =_xlfn.STDEV.S(J37:J1036) -> 1.892695564e-10 | L35: Rooibos latté-12 oz | M35: 2293.5 | N35: 417
B36: =C24 -> 3977.02775 | D36: =D24 -> 39433.24125 | F36: =C18 -> 13481.45 | H36: =B36+D36 -> 43410.269 | J36: =I24 -> 40803.62 | L36: Rooibos latté-8 oz | M36: 876.75 | N36: 167
A37: 1 | B37: 3977.02775 | C37: 1 | D37: 39433.24125 | E37: 1 | F37: 13481.45 | G37: 1 | H37: 43410.269 | I37: 1 | J37: 40803.62 | L37: Sahlep-6 oz | M37: 632 | N37: 158
A38: 2 | B38: 3977.02775 | C38: 2 | D38: 39433.24125 | E38: 2 | F38: 13481.45 | G38: 2 | H38: 43410.269 | I38: 2 | J38: 40803.62 | L38: Turkish coffee-3 oz | M38: 4481.25 | N38: 1195
A39: 3 | B39: 3977.02775 | C39: 3 | D39: 39433.24125 | E39: 3 | F39: 13481.45 | G39: 3 | H39: 43410.269 | I39: 3 | J39: 40803.62 | L39: Vacuum brew-12 oz | M39: 361 | N39: 76
A40: 4 | B40: 3977.02775 | C40: 4 | D40: 39433.24125 | E40: 4 | F40: 13481.45 | G40: 4 | H40: 43410.269 | I40: 4 | J40: 40803.62 | L40: Grand Total | M40: 41404.25 | N40: 11723
A41: 5 | B41: 3977.02775 | C41: 5 | D41: 39433.24125 | E41: 5 | F41: 13481.45 | G41: 5 | H41: 43410.269 | I41: 5 | J41: 40803.62
A42: 6 | B42: 3977.02775 | C42: 6 | D42: 39433.24125 | E42: 6 | F42: 13481.45 | G42: 6 | H42: 43410.269 | I42: 6 | J42: 40803.62
A43: 7 | B43: 3977.02775 | C43: 7 | D43: 39433.24125 | E43: 7 | F43: 13481.45 | G43: 7 | H43: 43410.269 | I43: 7 | J43: 40803.62
A44: 8 | B44: 3977.02775 | C44: 8 | D44: 39433.24125 | E44: 8 | F44: 13481.45 | G44: 8 | H44: 43410.269 | I44: 8 | J44: 40803.62
A45: 9 | B45: 3977.02775 | C45: 9 | D45: 39433.24125 | E45: 9 | F45: 13481.45 | G45: 9 | H45: 43410.269 | I45: 9 | J45: 40803.62
A46: 10 | B46: 3977.02775 | C46: 10 | D46: 39433.24125 | E46: 10 | F46: 13481.45 | G46: 10 | H46: 43410.269 | I46: 10 | J46: 40803.62
A47: 11 | B47: 3977.02775 | C47: 11 | D47: 39433.24125 | E47: 11 | F47: 13481.45 | G47: 11 | H47: 43410.269 | I47: 11 | J47: 40803.62
A48: 12 | B48: 3977.02775 | C48: 12 | D48: 39433.24125 | E48: 12 | F48: 13481.45 | G48: 12 | H48: 43410.269 | I48: 12 | J48: 40803.62
A49: 13 | B49: 3977.02775 | C49: 13 | D49: 39433.24125 | E49: 13 | F49: 13481.45 | G49: 13 | H49: 43410.269 | I49: 13 | J49: 40803.62
A50: 14 | B50: 3977.02775 | C50: 14 | D50: 39433.24125 | E50: 14 | F50: 13481.45 | G50: 14 | H50: 43410.269 | I50: 14 | J50: 40803.62
A51: 15 | B51: 3977.02775 | C51: 15 | D51: 39433.24125 | E51: 15 | F51: 13481.45 | G51: 15 | H51: 43410.269 | I51: 15 | J51: 40803.62
A52: 16 | B52: 3977.02775 | C52: 16 | D52: 39433.24125 | E52: 16 | F52: 13481.45 | G52: 16 | H52: 43410.269 | I52: 16 | J52: 40803.62
A53: 17 | B53: 3977.02775 | C53: 17 | D53: 39433.24125 | E53: 17 | F53: 13481.45 | G53: 17 | H53: 43410.269 | I53: 17 | J53: 40803.62
A54: 18 | B54: 3977.02775 | C54: 18 | D54: 39433.24125 | E54: 18 | F54: 13481.45 | G54: 18 | H54: 43410.269 | I54: 18 | J54: 40803.62
A55: 19 | B55: 3977.02775 | C55: 19 | D55: 39433.24125 | E55: 19 | F55: 13481.45 | G55: 19 | H55: 43410.269 | I55: 19 | J55: 40803.62
A56: 20 | B56: 3977.02775 | C56: 20 | D56: 39433.24125 | E56: 20 | F56: 13481.45 | G56: 20 | H56: 43410.269 | I56: 20 | J56: 40803.62
A57: 21 | B57: 3977.02775 | C57: 21 | D57: 39433.24125 | E57: 21 | F57: 13481.45 | G57: 21 | H57: 43410.269 | I57: 21 | J57: 40803.62
A58: 22 | B58: 3977.02775 | C58: 22 | D58: 39433.24125 | E58: 22 | F58: 13481.45 | G58: 22 | H58: 43410.269 | I58: 22 | J58: 40803.62
A59: 23 | B59: 3977.02775 | C59: 23 | D59: 39433.24125 | E59: 23 | F59: 13481.45 | G59: 23 | H59: 43410.269 | I59: 23 | J59: 40803.62
A60: 24 | B60: 3977.02775 | C60: 24 | D60: 39433.24125 | E60: 24 | F60: 13481.45 | G60: 24 | H60: 43410.269 | I60: 24 | J60: 40803.62
A61: 25 | B61: 3977.02775 | C61: 25 | D61: 39433.24125 | E61: 25 | F61: 13481.45 | G61: 25 | H61: 43410.269 | I61: 25 | J61: 40803.62
A62: 26 | B62: 3977.02775 | C62: 26 | D62: 39433.24125 | E62: 26 | F62: 13481.45 | G62: 26 | H62: 43410.269 | I62: 26 | J62: 40803.62
A63: 27 | B63: 3977.02775 | C63: 27 | D63: 39433.24125 | E63: 27 | F63: 13481.45 | G63: 27 | H63: 43410.269 | I63: 27 | J63: 40803.62
A64: 28 | B64: 3977.02775 | C64: 28 | D64: 39433.24125 | E64: 28 | F64: 13481.45 | G64: 28 | H64: 43410.269 | I64: 28 | J64: 40803.62
A65: 29 | B65: 3977.02775 | C65: 29 | D65: 39433.24125 | E65: 29 | F65: 13481.45 | G65: 29 | H65: 43410.269 | I65: 29 | J65: 40803.62
A66: 30 | B66: 3977.02775 | C66: 30 | D66: 39433.24125 | E66: 30 | F66: 13481.45 | G66: 30 | H66: 43410.269 | I66: 30 | J66: 40803.62
A67: 31 | B67: 3977.02775 | C67: 31 | D67: 39433.24125 | E67: 31 | F67: 13481.45 | G67: 31 | H67: 43410.269 | I67: 31 | J67: 40803.62
A68: 32 | B68: 3977.02775 | C68: 32 | D68: 39433.24125 | E68: 32 | F68: 13481.45 | G68: 32 | H68: 43410.269 | I68: 32 | J68: 40803.62
A69: 33 | B69: 3977.02775 | C69: 33 | D69: 39433.24125 | E69: 33 | F69: 13481.45 | G69: 33 | H69: 43410.269 | I69: 33 | J69: 40803.62
A70: 34 | B70: 3977.02775 | C70: 34 | D70: 39433.24125 | E70: 34 | F70: 13481.45 | G70: 34 | H70: 43410.269 | I70: 34 | J70: 40803.62
A71: 35 | B71: 3977.02775 | C71: 35 | D71: 39433.24125 | E71: 35 | F71: 13481.45 | G71: 35 | H71: 43410.269 | I71: 35 | J71: 40803.62
A72: 36 | B72: 3977.02775 | C72: 36 | D72: 39433.24125 | E72: 36 | F72: 13481.45 | G72: 36 | H72: 43410.269 | I72: 36 | J72: 40803.62
A73: 37 | B73: 3977.02775 | C73: 37 | D73: 39433.24125 | E73: 37 | F73: 13481.45 | G73: 37 | H73: 43410.269 | I73: 37 | J73: 40803.62
A74: 38 | B74: 3977.02775 | C74: 38 | D74: 39433.24125 | E74: 38 | F74: 13481.45 | G74: 38 | H74: 43410.269 | I74: 38 | J74: 40803.62
A75: 39 | B75: 3977.02775 | C75: 39 | D75: 39433.24125 | E75: 39 | F75: 13481.45 | G75: 39 | H75: 43410.269 | I75: 39 | J75: 40803.62
A76: 40 | B76: 3977.02775 | C76: 40 | D76: 39433.24125 | E76: 40 | F76: 13481.45 | G76: 40 | H76: 43410.269 | I76: 40 | J76: 40803.62
A77: 41 | B77: 3977.02775 | C77: 41 | D77: 39433.24125 | E77: 41 | F77: 13481.45 | G77: 41 | H77: 43410.269 | I77: 41 | J77: 40803.62
A78: 42 | B78: 3977.02775 | C78: 42 | D78: 39433.24125 | E78: 42 | F78: 13481.45 | G78: 42 | H78: 43410.269 | I78: 42 | J78: 40803.62
A79: 43 | B79: 3977.02775 | C79: 43 | D79: 39433.24125 | E79: 43 | F79: 13481.45 | G79: 43 | H79: 43410.269 | I79: 43 | J79: 40803.62
A80: 44 | B80: 3977.02775 | C80: 44 | D80: 39433.24125 | E80: 44 | F80: 13481.45 | G80: 44 | H80: 43410.269 | I80: 44 | J80: 40803.62
A81: 45 | B81: 3977.02775 | C81: 45 | D81: 39433.24125 | E81: 45 | F81: 13481.45 | G81: 45 | H81: 43410.269 | I81: 45 | J81: 40803.62
A82: 46 | B82: 3977.02775 | C82: 46 | D82: 39433.24125 | E82: 46 | F82: 13481.45 | G82: 46 | H82: 43410.269 | I82: 46 | J82: 40803.62
A83: 47 | B83: 3977.02775 | C83: 47 | D83: 39433.24125 | E83: 47 | F83: 13481.45 | G83: 47 | H83: 43410.269 | I83: 47 | J83: 40803.62
A84: 48 | B84: 3977.02775 | C84: 48 | D84: 39433.24125 | E84: 48 | F84: 13481.45 | G84: 48 | H84: 43410.269 | I84: 48 | J84: 40803.62
A85: 49 | B85: 3977.02775 | C85: 49 | D85: 39433.24125 | E85: 49 | F85: 13481.45 | G85: 49 | H85: 43410.269 | I85: 49 | J85: 40803.62
A86: 50 | B86: 3977.02775 | C86: 50 | D86: 39433.24125 | E86: 50 | F86: 13481.45 | G86: 50 | H86: 43410.269 | I86: 50 | J86: 40803.62
A87: 51 | B87: 3977.02775 | C87: 51 | D87: 39433.24125 | E87: 51 | F87: 13481.45 | G87: 51 | H87: 43410.269 | I87: 51 | J87: 40803.62
A88: 52 | B88: 3977.02775 | C88: 52 | D88: 39433.24125 | E88: 52 | F88: 13481.45 | G88: 52 | H88: 43410.269 | I88: 52 | J88: 40803.62
A89: 53 | B89: 3977.02775 | C89: 53 | D89: 39433.24125 | E89: 53 | F89: 13481.45 | G89: 53 | H89: 43410.269 | I89: 53 | J89: 40803.62
A90: 54 | B90: 3977.02775 | C90: 54 | D90: 39433.24125 | E90: 54 | F90: 13481.45 | G90: 54 | H90: 43410.269 | I90: 54 | J90: 40803.62
A91: 55 | B91: 3977.02775 | C91: 55 | D91: 39433.24125 | E91: 55 | F91: 13481.45 | G91: 55 | H91: 43410.269 | I91: 55 | J91: 40803.62
A92: 56 | B92: 3977.02775 | C92: 56 | D92: 39433.24125 | E92: 56 | F92: 13481.45 | G92: 56 | H92: 43410.269 | I92: 56 | J92: 40803.62
A93: 57 | B93: 3977.02775 | C93: 57 | D93: 39433.24125 | E93: 57 | F93: 13481.45 | G93: 57 | H93: 43410.269 | I93: 57 | J93: 40803.62
A94: 58 | B94: 3977.02775 | C94: 58 | D94: 39433.24125 | E94: 58 | F94: 13481.45 | G94: 58 | H94: 43410.269 | I94: 58 | J94: 40803.62
A95: 59 | B95: 3977.02775 | C95: 59 | D95: 39433.24125 | E95: 59 | F95: 13481.45 | G95: 59 | H95: 43410.269 | I95: 59 | J95: 40803.62
A96: 60 | B96: 3977.02775 | C96: 60 | D96: 39433.24125 | E96: 60 | F96: 13481.45 | G96: 60 | H96: 43410.269 | I96: 60 | J96: 40803.62
A97: 61 | B97: 3977.02775 | C97: 61 | D97: 39433.24125 | E97: 61 | F97: 13481.45 | G97: 61 | H97: 43410.269 | I97: 61 | J97: 40803.62
A98: 62 | B98: 3977.02775 | C98: 62 | D98: 39433.24125 | E98: 62 | F98: 13481.45 | G98: 62 | H98: 43410.269 | I98: 62 | J98: 40803.62
A99: 63 | B99: 3977.02775 | C99: 63 | D99: 39433.24125 | E99: 63 | F99: 13481.45 | G99: 63 | H99: 43410.269 | I99: 63 | J99: 40803.62
A100: 64 | B100: 3977.02775 | C100: 64 | D100: 39433.24125 | E100: 64 | F100: 13481.45 | G100: 64 | H100: 43410.269 | I100: 64 | J100: 40803.62
A101: 65 | B101: 3977.02775 | C101: 65 | D101: 39433.24125 | E101: 65 | F101: 13481.45 | G101: 65 | H101: 43410.269 | I101: 65 | J101: 40803.62
A102: 66 | B102: 3977.02775 | C102: 66 | D102: 39433.24125 | E102: 66 | F102: 13481.45 | G102: 66 | H102: 43410.269 | I102: 66 | J102: 40803.62
A103: 67 | B103: 3977.02775 | C103: 67 | D103: 39433.24125 | E103: 67 | F103: 13481.45 | G103: 67 | H103: 43410.269 | I103: 67 | J103: 40803.62
A104: 68 | B104: 3977.02775 | C104: 68 | D104: 39433.24125 | E104: 68 | F104: 13481.45 | G104: 68 | H104: 43410.269 | I104: 68 | J104: 40803.62
A105: 69 | B105: 3977.02775 | C105: 69 | D105: 39433.24125 | E105: 69 | F105: 13481.45 | G105: 69 | H105: 43410.269 | I105: 69 | J105: 40803.62
A106: 70 | B106: 3977.02775 | C106: 70 | D106: 39433.24125 | E106: 70 | F106: 13481.45 | G106: 70 | H106: 43410.269 | I106: 70 | J106: 40803.62
A107: 71 | B107: 3977.02775 | C107: 71 | D107: 39433.24125 | E107: 71 | F107: 13481.45 | G107: 71 | H107: 43410.269 | I107: 71 | J107: 40803.62
A108: 72 | B108: 3977.02775 | C108: 72 | D108: 39433.24125 | E108: 72 | F108: 13481.45 | G108: 72 | H108: 43410.269 | I108: 72 | J108: 40803.62
A109: 73 | B109: 3977.02775 | C109: 73 | D109: 39433.24125 | E109: 73 | F109: 13481.45 | G109: 73 | H109: 43410.269 | I109: 73 | J109: 40803.62
A110: 74 | B110: 3977.02775 | C110: 74 | D110: 39433.24125 | E110: 74 | F110: 13481.45 | G110: 74 | H110: 43410.269 | I110: 74 | J110: 40803.62
A111: 75 | B111: 3977.02775 | C111: 75 | D111: 39433.24125 | E111: 75 | F111: 13481.45 | G111: 75 | H111: 43410.269 | I111: 75 | J111: 40803.62
A112: 76 | B112: 3977.02775 | C112: 76 | D112: 39433.24125 | E112: 76 | F112: 13481.45 | G112: 76 | H112: 43410.269 | I112: 76 | J112: 40803.62
A113: 77 | B113: 3977.02775 | C113: 77 | D113: 39433.24125 | E113: 77 | F113: 13481.45 | G113: 77 | H113: 43410.269 | I113: 77 | J113: 40803.62
A114: 78 | B114: 3977.02775 | C114: 78 | D114: 39433.24125 | E114: 78 | F114: 13481.45 | G114: 78 | H114: 43410.269 | I114: 78 | J114: 40803.62
A115: 79 | B115: 3977.02775 | C115: 79 | D115: 39433.24125 | E115: 79 | F115: 13481.45 | G115: 79 | H115: 43410.269 | I115: 79 | J115: 40803.62
A116: 80 | B116: 3977.02775 | C116: 80 | D116: 39433.24125 | E116: 80 | F116: 13481.45 | G116: 80 | H116: 43410.269 | I116: 80 | J116: 40803.62
A117: 81 | B117: 3977.02775 | C117: 81 | D117: 39433.24125 | E117: 81 | F117: 13481.45 | G117: 81 | H117: 43410.269 | I117: 81 | J117: 40803.62
A118: 82 | B118: 3977.02775 | C118: 82 | D118: 39433.24125 | E118: 82 | F118: 13481.45 | G118: 82 | H118: 43410.269 | I118: 82 | J118: 40803.62
A119: 83 | B119: 3977.02775 | C119: 83 | D119: 39433.24125 | E119: 83 | F119: 13481.45 | G119: 83 | H119: 43410.269 | I119: 83 | J119: 40803.62
A120: 84 | B120: 3977.02775 | C120: 84 | D120: 39433.24125 | E120: 84 | F120: 13481.45 | G120: 84 | H120: 43410.269 | I120: 84 | J120: 40803.62
A121: 85 | B121: 3977.02775 | C121: 85 | D121: 39433.24125 | E121: 85 | F121: 13481.45 | G121: 85 | H121: 43410.269 | I121: 85 | J121: 40803.62
A122: 86 | B122: 3977.02775 | C122: 86 | D122: 39433.24125 | E122: 86 | F122: 13481.45 | G122: 86 | H122: 43410.269 | I122: 86 | J122: 40803.62
A123: 87 | B123: 3977.02775 | C123: 87 | D123: 39433.24125 | E123: 87 | F123: 13481.45 | G123: 87 | H123: 43410.269 | I123: 87 | J123: 40803.62
A124: 88 | B124: 3977.02775 | C124: 88 | D124: 39433.24125 | E124: 88 | F124: 13481.45 | G124: 88 | H124: 43410.269 | I124: 88 | J124: 40803.62
A125: 89 | B125: 3977.02775 | C125: 89 | D125: 39433.24125 | E125: 89 | F125: 13481.45 | G125: 89 | H125: 43410.269 | I125: 89 | J125: 40803.62
A126: 90 | B126: 3977.02775 | C126: 90 | D126: 39433.24125 | E126: 90 | F126: 13481.45 | G126: 90 | H126: 43410.269 | I126: 90 | J126: 40803.62
A127: 91 | B127: 3977.02775 | C127: 91 | D127: 39433.24125 | E127: 91 | F127: 13481.45 | G127: 91 | H127: 43410.269 | I127: 91 | J127: 40803.62
A128: 92 | B128: 3977.02775 | C128: 92 | D128: 39433.24125 | E128: 92 | F128: 13481.45 | G128: 92 | H128: 43410.269 | I128: 92 | J128: 40803.62
A129: 93 | B129: 3977.02775 | C129: 93 | D129: 39433.24125 | E129: 93 | F129: 13481.45 | G129: 93 | H129: 43410.269 | I129: 93 | J129: 40803.62
A130: 94 | B130: 3977.02775 | C130: 94 | D130: 39433.24125 | E130: 94 | F130: 13481.45 | G130: 94 | H130: 43410.269 | I130: 94 | J130: 40803.62
A131: 95 | B131: 3977.02775 | C131: 95 | D131: 39433.24125 | E131: 95 | F131: 13481.45 | G131: 95 | H131: 43410.269 | I131: 95 | J131: 40803.62
A132: 96 | B132: 3977.02775 | C132: 96 | D132: 39433.24125 | E132: 96 | F132: 13481.45 | G132: 96 | H132: 43410.269 | I132: 96 | J132: 40803.62
A133: 97 | B133: 3977.02775 | C133: 97 | D133: 39433.24125 | E133: 97 | F133: 13481.45 | G133: 97 | H133: 43410.269 | I133: 97 | J133: 40803.62
A134: 98 | B134: 3977.02775 | C134: 98 | D134: 39433.24125 | E134: 98 | F134: 13481.45 | G134: 98 | H134: 43410.269 | I134: 98 | J134: 40803.62
A135: 99 | B135: 3977.02775 | C135: 99 | D135: 39433.24125 | E135: 99 | F135: 13481.45 | G135: 99 | H135: 43410.269 | I135: 99 | J135: 40803.62
A136: 100 | B136: 3977.02775 | C136: 100 | D136: 39433.24125 | E136: 100 | F136: 13481.45 | G136: 100 | H136: 43410.269 | I136: 100 | J136: 40803.62
A137: 101 | B137: 3977.02775 | C137: 101 | D137: 39433.24125 | E137: 101 | F137: 13481.45 | G137: 101 | H137: 43410.269 | I137: 101 | J137: 40803.62
A138: 102 | B138: 3977.02775 | C138: 102 | D138: 39433.24125 | E138: 102 | F138: 13481.45 | G138: 102 | H138: 43410.269 | I138: 102 | J138: 40803.62
A139: 103 | B139: 3977.02775 | C139: 103 | D139: 39433.24125 | E139: 103 | F139: 13481.45 | G139: 103 | H139: 43410.269 | I139: 103 | J139: 40803.62
A140: 104 | B140: 3977.02775 | C140: 104 | D140: 39433.24125 | E140: 104 | F140: 13481.45 | G140: 104 | H140: 43410.269 | I140: 104 | J140: 40803.62
A141: 105 | B141: 3977.02775 | C141: 105 | D141: 39433.24125 | E141: 105 | F141: 13481.45 | G141: 105 | H141: 43410.269 | I141: 105 | J141: 40803.62
A142: 106 | B142: 3977.02775 | C142: 106 | D142: 39433.24125 | E142: 106 | F142: 13481.45 | G142: 106 | H142: 43410.269 | I142: 106 | J142: 40803.62
A143: 107 | B143: 3977.02775 | C143: 107 | D143: 39433.24125 | E143: 107 | F143: 13481.45 | G143: 107 | H143: 43410.269 | I143: 107 | J143: 40803.62
A144: 108 | B144: 3977.02775 | C144: 108 | D144: 39433.24125 | E144: 108 | F144: 13481.45 | G144: 108 | H144: 43410.269 | I144: 108 | J144: 40803.62
A145: 109 | B145: 3977.02775 | C145: 109 | D145: 39433.24125 | E145: 109 | F145: 13481.45 | G145: 109 | H145: 43410.269 | I145: 109 | J145: 40803.62
A146: 110 | B146: 3977.02775 | C146: 110 | D146: 39433.24125 | E146: 110 | F146: 13481.45 | G146: 110 | H146: 43410.269 | I146: 110 | J146: 40803.62
A147: 111 | B147: 3977.02775 | C147: 111 | D147: 39433.24125 | E147: 111 | F147: 13481.45 | G147: 111 | H147: 43410.269 | I147: 111 | J147: 40803.62
A148: 112 | B148: 3977.02775 | C148: 112 | D148: 39433.24125 | E148: 112 | F148: 13481.45 | G148: 112 | H148: 43410.269 | I148: 112 | J148: 40803.62
A149: 113 | B149: 3977.02775 | C149: 113 | D149: 39433.24125 | E149: 113 | F149: 13481.45 | G149: 113 | H149: 43410.269 | I149: 113 | J149: 40803.62
A150: 114 | B150: 3977.02775 | C150: 114 | D150: 39433.24125 | E150: 114 | F150: 13481.45 | G150: 114 | H150: 43410.269 | I150: 114 | J150: 40803.62
A151: 115 | B151: 3977.02775 | C151: 115 | D151: 39433.24125 | E151: 115 | F151: 13481.45 | G151: 115 | H151: 43410.269 | I151: 115 | J151: 40803.62
A152: 116 | B152: 3977.02775 | C152: 116 | D152: 39433.24125 | E152: 116 | F152: 13481.45 | G152: 116 | H152: 43410.269 | I152: 116 | J152: 40803.62
A153: 117 | B153: 3977.02775 | C153: 117 | D153: 39433.24125 | E153: 117 | F153: 13481.45 | G153: 117 | H153: 43410.269 | I153: 117 | J153: 40803.62
A154: 118 | B154: 3977.02775 | C154: 118 | D154: 39433.24125 | E154: 118 | F154: 13481.45 | G154: 118 | H154: 43410.269 | I154: 118 | J154: 40803.62
A155: 119 | B155: 3977.02775 | C155: 119 | D155: 39433.24125 | E155: 119 | F155: 13481.45 | G155: 119 | H155: 43410.269 | I155: 119 | J155: 40803.62
A156: 120 | B156: 3977.02775 | C156: 120 | D156: 39433.24125 | E156: 120 | F156: 13481.45 | G156: 120 | H156: 43410.269 | I156: 120 | J156: 40803.62
A157: 121 | B157: 3977.02775 | C157: 121 | D157: 39433.24125 | E157: 121 | F157: 13481.45 | G157: 121 | H157: 43410.269 | I157: 121 | J157: 40803.62
A158: 122 | B158: 3977.02775 | C158: 122 | D158: 39433.24125 | E158: 122 | F158: 13481.45 | G158: 122 | H158: 43410.269 | I158: 122 | J158: 40803.62
A159: 123 | B159: 3977.02775 | C159: 123 | D159: 39433.24125 | E159: 123 | F159: 13481.45 | G159: 123 | H159: 43410.269 | I159: 123 | J159: 40803.62
A160: 124 | B160: 3977.02775 | C160: 124 | D160: 39433.24125 | E160: 124 | F160: 13481.45 | G160: 124 | H160: 43410.269 | I160: 124 | J160: 40803.62
A161: 125 | B161: 3977.02775 | C161: 125 | D161: 39433.24125 | E161: 125 | F161: 13481.45 | G161: 125 | H161: 43410.269 | I161: 125 | J161: 40803.62
A162: 126 | B162: 3977.02775 | C162: 126 | D162: 39433.24125 | E162: 126 | F162: 13481.45 | G162: 126 | H162: 43410.269 | I162: 126 | J162: 40803.62
A163: 127 | B163: 3977.02775 | C163: 127 | D163: 39433.24125 | E163: 127 | F163: 13481.45 | G163: 127 | H163: 43410.269 | I163: 127 | J163: 40803.62
A164: 128 | B164: 3977.02775 | C164: 128 | D164: 39433.24125 | E164: 128 | F164: 13481.45 | G164: 128 | H164: 43410.269 | I164: 128 | J164: 40803.62
A165: 129 | B165: 3977.02775 | C165: 129 | D165: 39433.24125 | E165: 129 | F165: 13481.45 | G165: 129 | H165: 43410.269 | I165: 129 | J165: 40803.62
A166: 130 | B166: 3977.02775 | C166: 130 | D166: 39433.24125 | E166: 130 | F166: 13481.45 | G166: 130 | H166: 43410.269 | I166: 130 | J166: 40803.62
A167: 131 | B167: 3977.02775 | C167: 131 | D167: 39433.24125 | E167: 131 | F167: 13481.45 | G167: 131 | H167: 43410.269 | I167: 131 | J167: 40803.62
A168: 132 | B168: 3977.02775 | C168: 132 | D168: 39433.24125 | E168: 132 | F168: 13481.45 | G168: 132 | H168: 43410.269 | I168: 132 | J168: 40803.62
A169: 133 | B169: 3977.02775 | C169: 133 | D169: 39433.24125 | E169: 133 | F169: 13481.45 | G169: 133 | H169: 43410.269 | I169: 133 | J169: 40803.62
A170: 134 | B170: 3977.02775 | C170: 134 | D170: 39433.24125 | E170: 134 | F170: 13481.45 | G170: 134 | H170: 43410.269 | I170: 134 | J170: 40803.62
A171: 135 | B171: 3977.02775 | C171: 135 | D171: 39433.24125 | E171: 135 | F171: 13481.45 | G171: 135 | H171: 43410.269 | I171: 135 | J171: 40803.62
A172: 136 | B172: 3977.02775 | C172: 136 | D172: 39433.24125 | E172: 136 | F172: 13481.45 | G172: 136 | H172: 43410.269 | I172: 136 | J172: 40803.62
A173: 137 | B173: 3977.02775 | C173: 137 | D173: 39433.24125 | E173: 137 | F173: 13481.45 | G173: 137 | H173: 43410.269 | I173: 137 | J173: 40803.62
A174: 138 | B174: 3977.02775 | C174: 138 | D174: 39433.24125 | E174: 138 | F174: 13481.45 | G174: 138 | H174: 43410.269 | I174: 138 | J174: 40803.62
A175: 139 | B175: 3977.02775 | C175: 139 | D175: 39433.24125 | E175: 139 | F175: 13481.45 | G175: 139 | H175: 43410.269 | I175: 139 | J175: 40803.62
A176: 140 | B176: 3977.02775 | C176: 140 | D176: 39433.24125 | E176: 140 | F176: 13481.45 | G176: 140 | H176: 43410.269 | I176: 140 | J176: 40803.62
A177: 141 | B177: 3977.02775 | C177: 141 | D177: 39433.24125 | E177: 141 | F177: 13481.45 | G177: 141 | H177: 43410.269 | I177: 141 | J177: 40803.62
A178: 142 | B178: 3977.02775 | C178: 142 | D178: 39433.24125 | E178: 142 | F178: 13481.45 | G178: 142 | H178: 43410.269 | I178: 142 | J178: 40803.62
A179: 143 | B179: 3977.02775 | C179: 143 | D179: 39433.24125 | E179: 143 | F179: 13481.45 | G179: 143 | H179: 43410.269 | I179: 143 | J179: 40803.62
A180: 144 | B180: 3977.02775 | C180: 144 | D180: 39433.24125 | E180: 144 | F180: 13481.45 | G180: 144 | H180: 43410.269 | I180: 144 | J180: 40803.62
A181: 145 | B181: 3977.02775 | C181: 145 | D181: 39433.24125 | E181: 145 | F181: 13481.45 | G181: 145 | H181: 43410.269 | I181: 145 | J181: 40803.62
A182: 146 | B182: 3977.02775 | C182: 146 | D182: 39433.24125 | E182: 146 | F182: 13481.45 | G182: 146 | H182: 43410.269 | I182: 146 | J182: 40803.62
A183: 147 | B183: 3977.02775 | C183: 147 | D183: 39433.24125 | E183: 147 | F183: 13481.45 | G183: 147 | H183: 43410.269 | I183: 147 | J183: 40803.62
A184: 148 | B184: 3977.02775 | C184: 148 | D184: 39433.24125 | E184: 148 | F184: 13481.45 | G184: 148 | H184: 43410.269 | I184: 148 | J184: 40803.62
A185: 149 | B185: 3977.02775 | C185: 149 | D185: 39433.24125 | E185: 149 | F185: 13481.45 | G185: 149 | H185: 43410.269 | I185: 149 | J185: 40803.62
A186: 150 | B186: 3977.02775 | C186: 150 | D186: 39433.24125 | E186: 150 | F186: 13481.45 | G186: 150 | H186: 43410.269 | I186: 150 | J186: 40803.62
A187: 151 | B187: 3977.02775 | C187: 151 | D187: 39433.24125 | E187: 151 | F187: 13481.45 | G187: 151 | H187: 43410.269 | I187: 151 | J187: 40803.62
A188: 152 | B188: 3977.02775 | C188: 152 | D188: 39433.24125 | E188: 152 | F188: 13481.45 | G188: 152 | H188: 43410.269 | I188: 152 | J188: 40803.62
A189: 153 | B189: 3977.02775 | C189: 153 | D189: 39433.24125 | E189: 153 | F189: 13481.45 | G189: 153 | H189: 43410.269 | I189: 153 | J189: 40803.62
A190: 154 | B190: 3977.02775 | C190: 154 | D190: 39433.24125 | E190: 154 | F190: 13481.45 | G190: 154 | H190: 43410.269 | I190: 154 | J190: 40803.62
A191: 155 | B191: 3977.02775 | C191: 155 | D191: 39433.24125 | E191: 155 | F191: 13481.45 | G191: 155 | H191: 43410.269 | I191: 155 | J191: 40803.62
A192: 156 | B192: 3977.02775 | C192: 156 | D192: 39433.24125 | E192: 156 | F192: 13481.45 | G192: 156 | H192: 43410.269 | I192: 156 | J192: 40803.62
A193: 157 | B193: 3977.02775 | C193: 157 | D193: 39433.24125 | E193: 157 | F193: 13481.45 | G193: 157 | H193: 43410.269 | I193: 157 | J193: 40803.62
A194: 158 | B194: 3977.02775 | C194: 158 | D194: 39433.24125 | E194: 158 | F194: 13481.45 | G194: 158 | H194: 43410.269 | I194: 158 | J194: 40803.62
A195: 159 | B195: 3977.02775 | C195: 159 | D195: 39433.24125 | E195: 159 | F195: 13481.45 | G195: 159 | H195: 43410.269 | I195: 159 | J195: 40803.62
A196: 160 | B196: 3977.02775 | C196: 160 | D196: 39433.24125 | E196: 160 | F196: 13481.45 | G196: 160 | H196: 43410.269 | I196: 160 | J196: 40803.62
A197: 161 | B197: 3977.02775 | C197: 161 | D197: 39433.24125 | E197: 161 | F197: 13481.45 | G197: 161 | H197: 43410.269 | I197: 161 | J197: 40803.62
A198: 162 | B198: 3977.02775 | C198: 162 | D198: 39433.24125 | E198: 162 | F198: 13481.45 | G198: 162 | H198: 43410.269 | I198: 162 | J198: 40803.62
A199: 163 | B199: 3977.02775 | C199: 163 | D199: 39433.24125 | E199: 163 | F199: 13481.45 | G199: 163 | H199: 43410.269 | I199: 163 | J199: 40803.62
A200: 164 | B200: 3977.02775 | C200: 164 | D200: 39433.24125 | E200: 164 | F200: 13481.45 | G200: 164 | H200: 43410.269 | I200: 164 | J200: 40803.62
... 836 more rows
